bitfinex-derivatives/quotes_SOLF0:USTF0_20241216
["timestamp","ask_amount","ask_price","bid_price","bid_amount"]
[1734388535537,2.2884,218.44,218.41,2.2886]
[1734388536333,13.87441271,218.49,218.4,6.36925151]
[1734388536541,2.2886,218.43,218.4,6.36925151]
[1734388538343,6.36925151,218.47,218.4,6.36925151]
[1734388538545,2.2886,218.42,218.4,6.36925151]
[1734388541243,2.2886,218.42,218.41,5.52200408]
[1734388542549,2.2886,218.42,218.41,8.82612873]
[1734388543640,6.36925151,218.45,218.39,3.0489]
[1734388543841,2.2888,218.4,218.39,3.0489]
[1734388544051,2.2888,218.4,218.39,6.3537934]
[1734388544650,2.2888,218.4,218.39,3.0489]
[1734388544848,2.2888,218.4,218.39,6.35450502]
[1734388545048,2.2888,218.4,218.39,8.64564458]
[1734388545243,2.2888,218.4,218.39,11.95130662]
[1734388547946,2.2888,218.4,218.39,8.64564458]
[1734388548146,2.2888,218.4,218.39,11.9515217]
[1734388551642,2.2888,218.4,218.39,3.30587712]
[1734388551951,2.289,218.38,218.36,8.42925151]
[1734388552152,13.892012,218.45,218.37,3.30655524]
[1734388552451,6.36925151,218.45,218.38,3.30655524]
[1734388552648,6.36925151,218.45,218.39,3.30655524]
[1734388552848,6.36925151,218.45,218.37,5.56897201]
[1734388553148,2.2889,218.39,218.38,3.30654558]
[1734388553346,7.52294253,218.45,218.38,9.67579709]
[1734388553650,2.2888,218.4,218.38,8.65825151]
[1734388554452,2.2888,218.4,218.39,3.30581226]
[1734388556053,2.2888,218.4,218.37,7.85807201]
[1734388556251,2.2888,218.4,218.38,3.30711413]
[1734388556455,2.2888,218.4,218.37,7.85807201]
[1734388556645,2.2888,218.4,218.38,3.30707473]
[1734388556845,2.2888,218.4,218.37,7.85807201]
[1734388557148,2.2888,218.4,218.38,3.30676896]
[1734388557356,6.36925151,218.43,218.37,5.56897201]
[1734388557544,6.36925151,218.43,218.38,3.30624547]
[1734388557746,6.36925151,218.43,218.37,5.56897201]
[1734388557949,2.289,218.39,218.37,5.56897201]
[1734388558145,2.289,218.39,218.38,3.305178]
[1734388560853,2.289,218.39,218.37,5.56897201]
[1734388561154,2.289,218.39,218.38,3.30616308]
[1734388563554,2.289,218.39,218.37,5.56897201]
[1734388563760,2.289,218.39,218.38,3.30543844]
[1734388563948,2.289,218.39,218.37,5.56897201]
[1734388564150,2.289,218.39,218.38,3.30488119]
[1734388567266,8.65825151,218.39,218.38,3.30488119]
[1734388567465,6.36925151,218.37,218.31,6.36925151]
[1734388567664,6.36925151,218.37,218.31,11.91954309]
[1734388567866,6.36925151,218.37,218.31,6.36925151]
[1734388568365,8.42925151,218.37,218.31,6.36925151]
[1734388569562,2.2896,218.32,218.31,6.36925151]
[1734388569865,2.2896,218.32,218.27,5.1869]
[1734388570064,2.2896,218.32,218.31,6.36925151]
[1734388572358,2.06,218.37,218.28,6.36925151]
[1734388572359,6.36925151,218.34,218.28,6.36925151]
[1734388573064,2.2897,218.32,218.29,0.19399]
[1734388573663,6.36925151,218.34,218.29,0.19399]
[1734388573863,2.2898,218.31,218.29,0.19399]
[1734388574667,6.36925151,218.34,218.29,0.19399]
[1734388574862,2.2899,218.3,218.29,0.19399]
[1734388593676,2.2902,218.27,218.24,14.25866796]
[1734388595275,6.36925151,218.31,218.24,14.25866796]
[1734388595276,2.2903,218.26,218.24,14.25866796]
[1734388595478,6.36925151,218.31,218.24,11.96826796]
[1734388596276,2.2902,218.27,218.24,14.25876796]
[1734388596778,2.2903,218.26,218.24,5.59901645]
[1734388596981,2.2903,218.26,218.24,11.96826796]
[1734388597475,2.2904,218.25,218.24,5.59901645]
[1734388597780,6.36925151,218.31,218.24,11.96826796]
[1734388597978,8.42925151,218.31,218.24,11.96826796]
[1734388598179,2.2903,218.26,218.24,11.96826796]
[1734388601785,2.2904,218.25,218.24,5.59901645]
[1734388604989,2.2906,218.24,218.21,6.36925151]
[1734388606000,2.2906,218.24,218.21,8.66005151]
[1734388606187,2.2906,218.24,218.21,2.2908]
[1734388606391,2.2906,218.24,218.21,8.66005151]
[1734388607081,2.2906,218.24,218.22,5.62864004]
[1734388607883,2.2907,218.23,218.2,9.63187151]
[1734388608283,2.2907,218.23,218.2,3.26262]
[1734388608484,6.36925151,218.27,218.21,5.59781657]
[1734388608687,2.06,218.31,218.21,5.59781657]
[1734388608887,6.36925151,218.28,218.21,5.59781657]
[1734388609286,6.36925151,218.28,218.21,11.96706808]
[1734388609684,2.06,218.31,218.21,5.59781657]
[1734388609890,6.36925151,218.28,218.21,11.96706808]
[1734388610492,2.2905,218.24,218.21,11.96706808]
[1734388610894,2.2905,218.24,218.21,5.59781657]
[1734388611486,6.36925151,218.26,218.2,3.26262]
[1734388611687,2.2907,218.23,218.2,3.26262]
[1734388614106,2.2907,218.23,218.2,8.67122982]
[1734388614408,2.2907,218.23,218.2,10.96212982]
[1734388615901,2.2907,218.23,218.2,9.47572982]
[1734388616908,2.2907,218.23,218.2,9.21600982]
[1734388628317,2.2907,218.23,218.2,7.69950982]
[1734388629515,6.36925151,218.26,218.2,5.40860982]
[1734388630318,2.2907,218.23,218.2,5.40860982]
[1734388631014,2.2907,218.23,218.19,2.2909]
[1734388632018,2.2906,218.24,218.18,8.42925151]
[1734388632419,2.2906,218.24,218.21,5.60108038]
[1734388632820,2.2906,218.24,218.21,7.89188038]
[1734388639726,7.49509929,218.29,218.22,6.36925151]
[1734388639927,6.36925151,218.3,218.23,2.2905]
[1734388640824,6.36925151,218.29,218.23,2.2905]
[1734388642026,2.2903,218.27,218.23,2.2905]
[1734388642325,6.36925151,218.29,218.23,2.2905]
[1734388642624,2.2903,218.27,218.23,2.2905]
[1734388645625,2.2903,218.26,218.23,2.2905]
[1734388651742,6.36925151,218.3,218.22,8.42925151]
[1734388652037,49.03956167,218.32,218.22,8.42925151]
[1734388652236,6.36925151,218.3,218.22,8.42925151]
[1734388653333,6.36925151,218.3,218.23,2.2906]
[1734388653931,6.36925151,218.3,218.23,8.65985151]
[1734388654337,2.2903,218.26,218.23,8.65985151]
[1734388658534,2.2903,218.26,218.23,2.2906]
[1734388658939,2.2903,218.26,218.23,8.65985151]
[1734388659439,2.2903,218.26,218.23,2.2906]
[1734388659638,2.2903,218.26,218.23,8.65985151]
[1734388664736,2.2903,218.26,218.23,2.2906]
[1734388664938,2.2903,218.26,218.23,8.65985151]
[1734388669151,6.36925151,218.3,218.21,5.60108038]
[1734388669553,6.36925151,218.3,218.22,6.36925151]
[1734388670247,2.2903,218.26,218.23,2.2906]
[1734388670449,6.36925151,218.3,218.22,6.36925151]
[1734388670947,6.36925151,218.3,218.21,5.60108038]
[1734388671151,6.36925151,218.3,218.23,6.36925151]
[1734388671552,2.2903,218.26,218.23,8.65985151]
[1734388675958,6.36925151,218.3,218.23,6.36925151]
[1734388676257,6.36925151,218.3,218.23,8.42925151]
[1734388676753,6.36925151,218.3,218.23,2.06]
[1734388677560,2.2903,218.26,218.23,4.3506]
[1734388678961,2.2903,218.26,218.23,10.71985151]
[1734388684460,2.2903,218.26,218.23,4.3506]
[1734388693975,6.36925151,218.3,218.23,2.06]
[1734388694273,13.88380959,218.3,218.23,2.06]
[1734388694474,7.51455808,218.29,218.23,2.06]
[1734388694678,6.36925151,218.3,218.23,2.06]
[1734388695178,2.2904,218.25,218.23,4.3506]
[1734388695679,25.06419383,218.3,218.23,2.06]
[1734388695876,25.06419383,218.3,218.22,6.36925151]
[1734388695877,2.2905,218.24,218.22,6.36925151]
[1734388696384,2.2905,218.24,218.21,14.26103189]
[1734388696880,6.36925151,218.28,218.21,5.60108038]
[1734388697183,6.36925151,218.28,218.21,11.97033189]
[1734388697382,6.36925151,218.28,218.21,5.60108038]
[1734388697583,2.2905,218.24,218.21,5.60108038]
[1734388697880,2.2905,218.24,218.21,11.97033189]
[1734388698272,2.2905,218.24,218.21,5.60108038]
[1734388698474,2.2905,218.24,218.21,11.97033189]
[1734388698879,2.2905,218.24,218.21,14.26113189]
[1734388699580,2.2905,218.24,218.21,7.89188038]
[1734388699878,2.2905,218.24,218.21,14.26113189]
[1734388700085,2.2905,218.24,218.21,7.89188038]
[1734388700281,2.2905,218.24,218.21,14.26113189]
[1734388700685,2.2905,218.24,218.21,7.89188038]
[1734388700986,2.2905,218.24,218.21,14.26113189]
[1734388703183,2.2904,218.25,218.21,14.26113189]
[1734388704179,2.2904,218.25,218.21,7.89188038]
[1734388704585,2.2904,218.25,218.22,6.36925151]
[1734388709187,2.2904,218.25,218.21,7.89188038]
[1734388709393,2.2905,218.24,218.21,7.89188038]
[1734388709785,2.2905,218.24,218.21,2.2908]
[1734388715294,2.2905,218.24,218.22,5.39486005]
[1734388717902,2.2904,218.25,218.22,7.68556005]
[1734388722297,2.2904,218.25,218.22,2.2907]
[1734388725000,2.2904,218.25,218.22,7.69875075]
[1734388726003,7.50594655,218.29,218.22,7.69875075]
[1734388726199,2.2903,218.26,218.22,7.69875075]
[1734388730106,2.2903,218.26,218.23,2.2905]
[1734388730901,2.2902,218.27,218.24,2.2904]
[1734388734496,9.56968509,218.3,218.24,2.2904]
[1734388734706,2.2902,218.27,218.24,2.2904]
[1734388735102,7.51076525,218.34,218.23,8.42925151]
[1734388735307,7.51076525,218.34,218.26,2.2902]
[1734388735308,2.29,218.29,218.26,2.2902]
[1734388735610,2.29,218.29,218.25,6.36925151]
[1734388735611,6.36925151,218.32,218.25,6.36925151]
[1734388736507,6.36925151,218.32,218.27,2.2901]
[1734388736907,7.51076525,218.34,218.27,2.2901]
[1734388737207,6.36925151,218.32,218.27,2.2901]
[1734388737409,2.2899,218.3,218.27,2.2901]
[1734388740407,2.29,218.29,218.27,2.2901]
[1734388742812,49.033878,218.35,218.27,6.36925151]
[1734388743012,49.033878,218.35,218.3,6.36925151]
[1734388744113,2.2895,218.34,218.3,8.65905151]
[1734388744915,49.033878,218.35,218.32,2.2896]
[1734388746023,2.2893,218.36,218.32,2.2896]
[1734388746518,2.2893,218.36,218.32,8.65885151]
[1734388747528,2.2893,218.36,218.32,2.2896]
[1734388751524,2.2889,218.39,218.35,2.2893]
[1734388751925,4.5751,218.53,218.26,4.6319]
[1734388751926,1.4625,218.52,218.37,6.36925151]
[1734388752123,18.62331229,218.44,218.38,2.08]
[1734388752426,2.2887,218.42,218.38,4.369]
[1734388753031,6.36925151,218.44,218.38,4.369]
[1734388753227,2.2887,218.41,218.38,4.369]
[1734388753525,2.08,218.51,218.38,4.369]
[1734388753526,6.36925151,218.44,218.38,4.369]
[1734388754429,2.2886,218.42,218.38,4.369]
[1734388756529,2.2886,218.42,218.38,2.289]
[1734388756734,2.2886,218.42,218.39,2.08]
[1734388759629,2.2886,218.42,218.39,4.3689]
[1734388761937,2.2886,218.42,218.39,2.2889]
[1734388762138,2.2886,218.42,218.39,4.3689]
[1734388767542,6.36925151,218.46,218.39,2.08]
[1734388768043,2.2887,218.42,218.39,2.08]
[1734388769946,2.2887,218.42,218.39,4.3689]
[1734388773445,2.2887,218.42,218.41,5.54533974]
[1734388778348,5.52940169,218.51,218.41,5.54533974]
[1734388778349,42.92291679,218.59,218.41,5.54533974]
[1734388778550,7.83175151,218.52,218.44,6.36925151]
[1734388778750,2.2881,218.47,218.44,8.65755151]
[1734388783257,2.2881,218.47,218.46,6.36925151]
[1734388793862,2.2877,218.51,218.46,6.36925151]
[1734388794063,7.49154868,218.51,218.46,6.36925151]
[1734388794263,18.6471364,218.52,218.46,6.36925151]
[1734388794463,2.288,218.49,218.46,6.36925151]
[1734388795971,2.288,218.49,218.46,8.65735151]
[1734388799968,2.2878,218.5,218.47,2.288]
[1734388800168,1.4729,218.57,218.44,2.06]
[1734388800375,6.36925151,218.54,218.47,6.36925151]
[1734388800576,18.66500829,218.56,218.48,2.2879]
[1734388800767,7.49996343,218.55,218.48,6.36925151]
[1734388800972,18.66500829,218.55,218.48,6.36925151]
[1734388801171,2.2877,218.51,218.48,8.65715151]
[1734388801970,2.2876,218.52,218.49,2.2878]
[1734388802165,7.49837953,218.54,218.48,6.36925151]
[1734388802367,25.03225507,218.57,218.48,6.36925151]
[1734388802672,2.2875,218.52,218.49,2.2878]
[1734388803672,2.2875,218.52,218.5,6.36925151]
[1734388804273,2.2874,218.54,218.5,8.65695151]
[1734388806181,7.49335907,218.57,218.51,2.2876]
[1734388806382,2.2872,218.55,218.51,2.2876]
[1734388806684,7.49335907,218.57,218.52,6.36925151]
[1734388806873,2.2871,218.57,218.53,2.2874]
[1734388807073,13.85881933,218.6,218.53,2.2874]
[1734388807378,13.85881933,218.6,218.54,6.36925151]
[1734388807379,6.36925151,218.6,218.54,6.36925151]
[1734388808088,3.0781,218.64,218.58,6.36925151]
[1734388808281,9.44735151,218.64,218.56,6.36925151]
[1734388808783,2.2865,218.62,218.56,6.36925151]
[1734388808984,9.44735151,218.64,218.56,6.36925151]
[1734388808985,7.48641535,218.63,218.56,6.36925151]
[1734388809175,9.44735151,218.64,218.56,6.36925151]
[1734388809681,16.93376686,218.64,218.56,6.36925151]
[1734388809884,7.48641535,218.63,218.56,6.36925151]
[1734388810083,9.44735151,218.64,218.56,6.36925151]
[1734388810585,2.2869,218.59,218.56,6.36925151]
[1734388811291,2.2869,218.58,218.56,6.36925151]
[1734388821295,2.2869,218.58,218.55,4.3472]
[1734388821597,2.2869,218.58,218.56,6.36925151]
[1734388825299,2.2868,218.6,218.57,2.287]
[1734388828503,2.2868,218.6,218.58,6.36925151]
[1734388833411,2.2868,218.59,218.58,6.36925151]
[1734388841009,2.2868,218.59,218.56,16.34822959]
[1734388848026,2.2868,218.59,218.58,6.36925151]
[1734388848326,2.2868,218.59,218.57,2.287]
[1734388848624,2.2868,218.59,218.58,6.36925151]
[1734388853429,6.36925151,218.65,218.58,6.36925151]
[1734388853430,2.2867,218.6,218.58,6.36925151]
[1734388856322,119.70184095,218.77,218.58,6.36925151]
[1734388856523,2.2865,218.63,218.6,2.2867]
[1734388857932,9.7950695,218.63,218.6,2.2867]
[1734388858132,7.5085695,218.62,218.6,2.2867]
[1734388858332,2.2865,218.63,218.6,2.2867]
[1734388859834,9.7950695,218.63,218.6,2.2867]
[1734388860034,7.5085695,218.62,218.6,2.2867]
[1734388860335,2.2865,218.63,218.6,2.2867]
[1734388860730,2.2868,218.6,218.57,2.287]
[1734388860933,2.2868,218.6,218.57,8.65625151]
[1734388863330,2.2868,218.6,218.57,2.287]
[1734388863742,2.2868,218.6,218.57,8.65625151]
[1734388864434,2.2868,218.6,218.58,5.47821689]
[1734388865543,2.2868,218.6,218.57,2.287]
[1734388865735,7.5068287,218.62,218.54,2.2873]
[1734388865736,2.2871,218.57,218.54,2.2873]
[1734388865940,2.2871,218.57,218.54,10.75655151]
[1734388866936,2.2871,218.57,218.55,6.36925151]
[1734388868137,2.2871,218.57,218.55,11.78616565]
[1734388869647,2.2871,218.57,218.55,14.07336565]
[1734388872352,2.2873,218.55,218.42,4.5812]
[1734388872753,6.36925151,218.58,218.42,4.5812]
[1734388872949,2.2875,218.53,218.49,2.2878]
[1734388873145,6.36925151,218.56,218.42,4.5812]
[1734388873346,6.36925151,218.56,218.47,6.36925151]
[1734388873655,2.2878,218.5,218.47,8.65725151]
[1734388874048,2.2878,218.5,218.49,6.36925151]
[1734388876553,2.2878,218.5,218.47,7.74564988]
[1734388876852,2.2878,218.5,218.49,6.36925151]
[1734388880953,2.06,218.57,218.49,6.36925151]
[1734388881253,2.2877,218.51,218.49,6.36925151]
[1734388882046,2.2875,218.53,218.49,6.36925151]
[1734388883254,2.2876,218.52,218.49,6.36925151]
[1734388884155,7.4760017,218.56,218.51,6.36925151]
[1734388884456,6.36925151,218.61,218.53,8.65665151]
[1734388885357,2.287,218.58,218.53,8.65665151]
[1734388888252,2.287,218.58,218.53,6.36925151]
[1734388891251,2.2868,218.6,218.53,6.36925151]
[1734388891761,2.2868,218.6,218.55,6.36925151]
[1734388892059,6.36925151,218.61,218.55,6.36925151]
[1734388892259,2.2868,218.59,218.55,6.36925151]
[1734388893962,2.2868,218.59,218.52,2.2876]
[1734388894156,2.2868,218.59,218.53,6.36925151]
[1734388895853,2.2866,218.61,218.53,8.65665151]
[1734388896056,8.65585151,218.61,218.53,8.65665151]
[1734388897156,8.65585151,218.61,218.54,2.2874]
[1734388898267,8.65585151,218.61,218.54,8.65665151]
[1734388898959,2.2868,218.6,218.54,8.65665151]
[1734388899961,2.2869,218.59,218.53,2.2875]
[1734388900155,2.2869,218.59,218.53,8.65675151]
[1734388906668,2.2869,218.59,218.53,2.2875]
[1734388906874,2.2869,218.59,218.53,8.65675151]
[1734388909772,2.287,218.58,218.53,2.2875]
[1734388911166,6.36925151,218.57,218.48,2.2879]
[1734388911367,6.36925151,218.55,218.41,6.9168]
[1734388911572,6.36925151,218.55,218.47,6.36925151]
[1734388912072,2.2877,218.51,218.47,6.36925151]
[1734388915175,2.2877,218.51,218.46,7.68842035]
[1734388915473,2.2879,218.5,218.46,8.65745151]
[1734388915975,9.73080931,218.53,218.46,6.36925151]
[1734388916176,2.2879,218.49,218.46,6.36925151]
[1734388917769,2.2879,218.49,218.45,2.2883]
[1734388917969,2.2879,218.49,218.46,6.36925151]
[1734388921778,2.2878,218.5,218.46,8.65745151]
[1734388921974,6.36925151,218.54,218.46,6.36925151]
[1734388922175,2.24,218.53,218.46,6.36925151]
[1734388923084,2.2877,218.51,218.48,2.288]
[1734388923285,2.24,218.53,218.48,2.288]
[1734388924576,2.2876,218.52,218.48,2.288]
[1734388926382,2.2875,218.54,218.5,2.2877]
[1734388927382,2.2876,218.52,218.48,8.65715151]
[1734388927581,2.2876,218.52,218.48,2.2879]
[1734388928684,2.2876,218.52,218.48,8.65715151]
[1734388937689,2.2877,218.51,218.48,2.2879]
[1734388939087,7.494664,218.55,218.41,3.1028]
[1734388939088,6.36925151,218.5,218.41,3.1028]
[1734388939294,2.2883,218.45,218.42,8.65775151]
[1734388939993,2.2883,218.45,218.42,2.2885]
[1734388940194,2.2883,218.45,218.42,8.65775151]
[1734388940492,2.2883,218.45,218.42,6.36925151]
[1734388941292,8.58925151,218.5,218.42,6.36925151]
[1734388941491,2.2885,218.44,218.42,6.36925151]
[1734388942292,2.2885,218.44,218.41,5.3915]
[1734388942597,2.2885,218.44,218.41,11.76075151]
[1734388942993,2.2885,218.44,218.41,17.2160545]
[1734388946698,2.2885,218.44,218.41,11.76075151]
[1734388951999,2.2885,218.44,218.41,17.36853449]
[1734388953905,2.2885,218.44,218.41,10.99928298]
[1734388954102,2.2885,218.44,218.41,17.36853449]
[1734388954494,2.2885,218.44,218.41,15.07983449]
[1734388957205,2.2885,218.44,218.41,8.71058298]
[1734388959508,2.2885,218.44,218.41,5.60778298]
[1734388959809,6.36925151,218.58,218.43,6.36925151]
[1734388960112,8.54925151,218.58,218.51,6.36925151]
[1734388961013,16.04717384,218.58,218.51,6.36925151]
[1734388961211,27.21049951,218.58,218.51,6.36925151]
[1734388961414,2.2877,218.52,218.51,6.36925151]
[1734388961813,7.49792233,218.55,218.51,6.36925151]
[1734388962013,18.66192915,218.57,218.51,6.36925151]
[1734388962208,7.49792233,218.56,218.51,6.36925151]
[1734388963518,2.2875,218.53,218.51,6.36925151]
[1734388963722,2.2875,218.53,218.49,2.2878]
[1734388963909,2.2875,218.53,218.5,6.36925151]
[1734388966116,2.2875,218.53,218.49,2.2878]
[1734388966320,2.2875,218.53,218.49,8.65705151]
[1734388970215,7.49493036,218.57,218.49,8.65705151]
[1734388970421,2.2876,218.52,218.49,8.65705151]
[1734388981321,2.2876,218.52,218.49,8.65715151]
[1734388992234,2.2874,218.53,218.49,8.65715151]
[1734388993336,2.2874,218.53,218.49,6.36925151]
[1734388993525,2.2874,218.53,218.5,2.2877]
[1734388996232,7.48566996,218.57,218.49,6.36925151]
[1734388996434,2.2873,218.55,218.52,2.2875]
[1734388997230,9.77296996,218.55,218.52,2.2875]
[1734388997436,2.2873,218.55,218.52,2.2875]
[1734388999042,9.78359512,218.55,218.52,2.2875]
[1734388999245,2.2873,218.55,218.52,2.2875]
[1734389000137,9.7864518,218.55,218.52,2.2875]
[1734389000340,2.2873,218.55,218.52,2.2875]
[1734389000838,18.6692772,218.57,218.51,6.36925151]
[1734389001035,2.2869,218.58,218.55,2.2872]
[1734389001740,20.95725851,218.58,218.55,2.2872]
[1734389001943,6.36925151,218.6,218.55,2.2872]
[1734389001944,7.50118704,218.57,218.55,2.2872]
[1734389002240,2.2868,218.59,218.55,2.2872]
[1734389002642,13.46396541,218.59,218.55,2.2872]
[1734389002941,7.50118704,218.58,218.55,2.2872]
[1734389003141,18.67835245,218.58,218.55,2.2872]
[1734389003442,7.50118704,218.57,218.53,6.36925151]
[1734389003636,7.50118704,218.57,218.55,2.2871]
[1734389005039,7.50118704,218.58,218.55,2.2871]
[1734389005540,7.50118704,218.58,218.55,2.1]
[1734389005742,38.3271372,218.72,218.55,8.46925151]
[1734389005743,26.92644009,218.67,218.55,8.46925151]
[1734389005942,6.36925151,218.63,218.55,2.1]
[1734389006138,6.36925151,218.63,218.56,6.36925151]
[1734389006542,24.51073368,218.63,218.56,6.36925151]
[1734389006740,20.42798217,218.62,218.57,2.2869]
[1734389007036,7.50118704,218.61,218.57,2.2869]
[1734389007243,2.2865,218.62,218.57,2.2869]
[1734389007438,2.2866,218.61,218.56,2.2871]
[1734389007642,2.2866,218.61,218.56,8.65635151]
[1734389008043,9.78778704,218.61,218.56,8.65635151]
[1734389008238,7.50118704,218.6,218.56,8.65635151]
[1734389008440,2.2866,218.61,218.56,8.65635151]
[1734389009147,2.2866,218.61,218.56,10.75635151]
[1734389009550,9.78778704,218.61,218.56,10.75635151]
[1734389009744,7.50118704,218.6,218.56,10.75635151]
[1734389009948,2.2866,218.61,218.56,10.75635151]
[1734389010247,2.2866,218.61,218.57,2.287]
[1734389012153,2.2867,218.6,218.57,2.287]
[1734389015250,2.2867,218.6,218.58,6.36925151]
[1734389015855,2.2865,218.62,218.58,8.65615151]
[1734389016147,2.2865,218.62,218.58,6.36925151]
[1734389016355,2.2864,218.63,218.59,2.2867]
[1734389017655,2.2865,218.62,218.59,2.2867]
[1734389018354,2.2866,218.61,218.58,8.65605151]
[1734389019651,9.78031616,218.61,218.58,8.65605151]
[1734389019849,2.2866,218.61,218.58,8.65605151]
[1734389020957,2.2866,218.61,218.58,6.36925151]
[1734389023759,2.2867,218.6,218.58,6.36925151]
[1734389027766,7.49400007,218.64,218.56,2.06]
[1734389027767,7.49400007,218.63,218.56,2.06]
[1734389028064,2.2868,218.59,218.57,6.36925151]
[1734389030660,7.49411606,218.61,218.57,8.65625151]
[1734389030861,18.10811806,218.66,218.57,8.65625151]
[1734389031065,7.49411606,218.65,218.57,8.65625151]
[1734389031258,2.2866,218.61,218.57,8.65625151]
[1734389034572,2.2866,218.61,218.57,2.287]
[1734389034763,2.2867,218.6,218.58,6.36925151]
[1734389038568,2.06,218.66,218.58,6.36925151]
[1734389038569,2.2864,218.63,218.58,6.36925151]
[1734389038768,9.55287586,218.66,218.58,6.36925151]
[1734389038968,18.10613109,218.65,218.58,6.36925151]
[1734389039169,2.2868,218.6,218.58,6.36925151]
[1734389040168,2.2868,218.6,218.56,9.96795742]
[1734389040363,2.2868,218.6,218.58,6.36925151]
[1734389040568,2.2868,218.6,218.57,2.2869]
[1734389040771,2.2868,218.6,218.59,6.36925151]
[1734389040973,2.2868,218.6,218.57,2.2869]
[1734389041176,2.2868,218.6,218.59,6.36925151]
[1734389042568,2.2868,218.6,218.57,2.2869]
[1734389042870,2.2868,218.6,218.58,6.36925151]
[1734389044969,2.2868,218.6,218.57,2.2869]
[1734389045272,2.2868,218.6,218.59,6.36925151]
[1734389050177,9.79414247,218.61,218.59,6.36925151]
[1734389050377,2.2866,218.61,218.59,6.36925151]
[1734389051582,9.79640468,218.61,218.59,6.36925151]
[1734389051879,7.50980468,218.6,218.59,6.36925151]
[1734389052378,2.2866,218.61,218.59,6.36925151]
[1734389060478,9.79640468,218.61,218.59,6.36925151]
[1734389060681,7.50980468,218.6,218.59,6.36925151]
[1734389060881,2.2866,218.61,218.59,6.36925151]
[1734389065183,9.79640468,218.61,218.59,6.36925151]
[1734389065389,7.50980468,218.6,218.59,6.36925151]
[1734389065579,2.2866,218.61,218.59,6.36925151]
[1734389073485,2.2866,218.61,218.58,2.2868]
[1734389073690,2.2866,218.61,218.59,8.65605151]
[1734389073891,2.2866,218.61,218.59,2.2868]
[1734389075092,2.2866,218.61,218.59,8.65605151]
[1734389077093,2.2865,218.62,218.59,8.65605151]
[1734389078795,9.79630468,218.62,218.59,8.65605151]
[1734389078995,7.50980468,218.61,218.59,8.65605151]
[1734389079294,2.2865,218.62,218.59,8.65605151]
[1734389082399,9.79630468,218.62,218.59,8.65605151]
[1734389082700,7.50980468,218.61,218.59,8.65605151]
[1734389082893,2.2865,218.62,218.59,8.65605151]
[1734389083792,9.79630468,218.62,218.59,8.65605151]
[1734389083991,7.50980468,218.61,218.59,8.65605151]
[1734389084192,2.2865,218.62,218.59,8.65605151]
[1734389085203,7.50980468,218.62,218.59,6.36925151]
[1734389085398,7.50980468,218.63,218.59,6.36925151]
[1734389085702,18.13983632,218.66,218.59,6.36925151]
[1734389085901,2.2865,218.62,218.59,6.36925151]
[1734389091105,9.79630468,218.62,218.59,6.36925151]
[1734389091307,7.50980468,218.61,218.59,6.36925151]
[1734389091507,2.2865,218.62,218.59,6.36925151]
[1734389098011,7.50980468,218.66,218.59,6.36925151]
[1734389098211,2.2863,218.64,218.61,8.65585151]
[1734389105718,2.2864,218.63,218.61,6.36925151]
[1734389129035,9.79620468,218.63,218.61,6.36925151]
[1734389129237,7.50980468,218.62,218.61,6.36925151]
[1734389129435,2.2864,218.63,218.61,6.36925151]
[1734389135040,2.2864,218.63,218.6,6.36925151]
[1734389136238,2.2864,218.63,218.59,2.2867]
[1734389136444,2.2864,218.63,218.6,6.36925151]
[1734389142949,2.2864,218.63,218.6,8.65585151]
[1734389151354,2.2864,218.63,218.6,6.36925151]
[1734389152857,2.2863,218.64,218.62,6.36925151]
[1734389155855,2.286,218.67,218.62,6.36925151]
[1734389156056,9.56980468,218.68,218.62,6.36925151]
[1734389156252,2.06,218.68,218.62,6.36925151]
[1734389156756,19.80738677,218.68,218.62,6.36925151]
[1734389156953,7.50980468,218.67,218.6,2.2866]
[1734389157255,2.2862,218.65,218.62,6.36925151]
[1734389158357,9.56980468,218.68,218.62,6.36925151]
[1734389158554,2.2863,218.64,218.62,6.36925151]
[1734389161054,7.50980468,218.69,218.62,6.36925151]
[1734389161354,2.2862,218.65,218.62,6.36925151]
[1734389171553,9.79600468,218.65,218.62,6.36925151]
[1734389171754,7.50980468,218.64,218.62,6.36925151]
[1734389172253,2.2862,218.65,218.62,6.36925151]
[1734389172663,2.2863,218.64,218.62,6.36925151]